bitfinex/quotes_BTCUSD_20240803
["timestamp","ask_amount","ask_price","bid_price","bid_amount"]
[1722710605551,0.024274,60384.0,60383.0,1.70255388]
[1722710605764,0.024274,60384.0,60383.0,1.51528635]
[1722710606143,0.024274,60384.0,60383.0,1.5611665]
[1722710606363,0.024274,60384.0,60383.0,1.02566735]
[1722710606536,0.024274,60384.0,60383.0,1.01366735]
[1722710606537,0.011274,60384.0,60383.0,1.01366735]
[1722710606741,0.010274,60384.0,60383.0,1.01066735]
[1722710606941,0.011274,60384.0,60383.0,1.35088635]
[1722710607147,0.011274,60384.0,60383.0,1.3967665]
[1722710607148,0.012274,60384.0,60383.0,1.3967665]
[1722710607547,0.011274,60384.0,60383.0,1.3937665]
[1722710607777,0.010274,60384.0,60383.0,1.3877665]
[1722710607978,0.010274,60384.0,60383.0,1.34188635]
[1722710608516,0.010274,60384.0,60383.0,1.38760292]
[1722710608853,0.011274,60384.0,60383.0,1.05938392]
[1722710609126,0.012274,60384.0,60383.0,1.06538392]
[1722710609331,0.03723976,60384.0,60383.0,1.34788635]
[1722710609533,0.011274,60384.0,60383.0,1.39360292]
[1722710609740,0.010274,60384.0,60383.0,0.17348799]
[1722710609942,0.010274,60384.0,60383.0,0.0077371]
[1722710609943,0.626993,60384.0,60383.0,0.0077371]
[1722710610171,0.959206,60384.0,60383.0,0.0107371]
[1722710610395,1.09688341,60384.0,60383.0,0.00304]
[1722710610613,1.58259641,60384.0,60383.0,4e-05]
[1722710611706,1.58259641,60384.0,60383.0,0.00904]
[1722710611707,1.58359641,60384.0,60383.0,0.00904]
[1722710611933,1.91480941,60384.0,60383.0,0.00904]
[1722710612147,1.91580941,60384.0,60383.0,0.01204]
[1722710612384,0.165673,60360.0,60352.0,0.00083]
[1722710612609,0.662532,60375.0,60353.0,0.16575089]
[1722710612610,0.1199,60364.0,60353.0,0.16575089]
[1722710612872,0.1199,60364.0,60354.0,0.331377]
[1722710613084,0.1199,60364.0,60355.0,0.33143489]
[1722710613291,0.16567,60361.0,60356.0,0.165682]
[1722710613504,0.331336,60362.0,60355.0,0.1735216]
[1722710613764,0.497034,60358.0,60357.0,0.00776545]
[1722710614006,0.33134,60361.0,60356.0,0.00776808]
[1722710614235,0.465226,60364.0,60355.0,0.165685]
[1722710614236,0.165672,60360.0,60355.0,0.165685]
[1722710614439,0.33133,60363.0,60357.0,0.00776545]
[1722710614635,0.331337,60362.0,60356.0,0.00776808]
[1722710614834,0.165676,60359.0,60358.0,0.00716568]
[1722710615066,0.345337,60362.0,60357.0,0.0071681]
[1722710615276,0.345337,60362.0,60355.0,0.001]
[1722710615277,0.014,60362.0,60358.0,0.17291657]
[1722710615487,0.014,60361.0,60355.0,0.001]
[1722710615697,0.165676,60359.0,60356.0,0.16575089]
[1722710616303,0.012,60359.0,60356.0,0.16575089]
[1722710616510,0.177675,60359.0,60356.0,0.16575089]
[1722710616685,0.331286,60371.0,60358.0,0.331356]
[1722710616919,0.331286,60371.0,60353.0,0.331379]
[1722710616920,0.165644,60371.0,60359.0,0.16575089]
[1722710617127,0.285532,60375.0,60367.0,0.331304]
[1722710617334,0.285532,60375.0,60371.0,0.331281]
[1722710617335,0.1199,60375.0,60371.0,0.331281]
[1722710617514,0.321121,60379.0,60374.0,0.165633]
[1722710617748,0.321121,60379.0,60374.0,0.18209416]
[1722710617950,0.1199,60381.0,60374.0,0.18221205]
[1722710619408,0.1199,60381.0,60374.0,0.01646116]
[1722710619409,0.014,60375.0,60374.0,0.01646116]
[1722710619617,0.00936407,60386.0,60375.0,0.00331253]
[1722710619827,0.014,60379.0,60378.0,0.165621]
[1722710620027,0.014,60379.0,60378.0,0.66261789]
[1722710620234,0.014,60379.0,60378.0,1.00098103]
[1722710620459,0.014,60381.0,60380.0,0.165617]
[1722710620667,0.02596952,60383.0,60382.0,0.165612]
[1722710620871,0.024274,60384.0,60382.0,0.34782405]
[1722710621077,0.175881,60384.0,60382.0,0.0235686]
[1722710621250,0.010274,60384.0,60383.0,0.165609]
[1722710621478,0.010274,60384.0,60382.0,0.1891796]
[1722710621606,0.010274,60384.0,60383.0,0.50393301]
[1722710622050,0.010274,60384.0,60383.0,1.0009029]
[1722710622282,0.010274,60384.0,60383.0,1.3321219]
[1722710622621,0.010274,60384.0,60383.0,1.4883219]
[1722710623042,0.010274,60384.0,60383.0,1.1571029]
[1722710623166,0.037274,60384.0,60383.0,1.1571029]
[1722710623366,0.023274,60384.0,60383.0,1.1571029]
[1722710623569,0.010274,60384.0,60383.0,0.1728559]
[1722710623776,0.020274,60384.0,60383.0,0.3384649]
[1722710623980,0.029274,60384.0,60383.0,0.3384649]
[1722710624233,0.05524117,60384.0,60383.0,0.3385049]
[1722710624438,0.029274,60384.0,60383.0,0.00714501]
[1722710624823,0.19488,60384.0,60383.0,0.00714501]
[1722710625324,0.526093,60384.0,60383.0,0.00714501]
[1722710625693,0.029274,60384.0,60383.0,4e-05]
[1722710625851,0.526093,60384.0,60383.0,4e-05]
[1722710626253,0.99497112,60384.0,60383.0,4e-05]
[1722710626516,0.66376071,60384.0,60383.0,4e-05]
[1722710627158,0.16694171,60384.0,60383.0,4e-05]
[1722710627353,0.16694171,60384.0,60383.0,0.165649]
[1722710627722,0.029274,60384.0,60383.0,1.0009429]
[1722710627988,0.029274,60384.0,60383.0,1.5035619]
[1722710628766,0.029274,60384.0,60383.0,1.4915619]
[1722710628971,0.019274,60384.0,60383.0,1.5035619]
[1722710629144,0.019274,60384.0,60383.0,1.4915619]
[1722710629735,0.027274,60384.0,60383.0,1.5035619]
[1722710629935,0.027274,60384.0,60383.0,1.8367809]
[1722710630168,0.019274,60384.0,60383.0,1.8567809]
[1722710630370,0.019274,60384.0,60383.0,1.8597809]
[1722710630592,0.010274,60384.0,60383.0,1.8577809]
[1722710630792,0.010274,60384.0,60383.0,1.8357809]
[1722710630989,0.011274,60384.0,60383.0,1.8347809]
[1722710631239,0.011274,60384.0,60383.0,1.8587809]
[1722710631392,0.011274,60384.0,60383.0,1.86799516]
[1722710632025,0.010274,60385.0,60384.0,1.502458]
[1722710632225,0.010274,60385.0,60384.0,1.78467005]
[1722710632444,0.010274,60385.0,60384.0,1.86587171]
[1722710632646,0.010274,60385.0,60384.0,1.81177264]
[1722710633251,0.010274,60385.0,60384.0,1.88887171]
[1722710633252,0.011274,60385.0,60384.0,1.88887171]
[1722710633675,0.012274,60385.0,60384.0,1.81777264]
[1722710633837,0.001,60388.0,60387.0,1.224389]
[1722710634043,0.010274,60398.0,60397.0,0.496713]
[1722710634215,0.010274,60398.0,60397.0,1.81498289]
[1722710634414,0.010274,60398.0,60397.0,1.82405395]
[1722710634616,0.010274,60398.0,60397.0,2.11062211]
[1722710634819,0.010274,60398.0,60397.0,2.13325395]
[1722710635048,0.010274,60398.0,60397.0,2.11062211]
[1722710635638,0.0362346,60398.0,60397.0,2.11062211]
[1722710635838,0.0362346,60398.0,60397.0,2.09162211]
[1722710635839,0.0372346,60398.0,60397.0,2.09162211]
[1722710636247,0.0382346,60398.0,60397.0,2.09962211]
[1722710636418,0.0372346,60398.0,60397.0,2.09662211]
[1722710636620,0.0382346,60398.0,60397.0,1.77011195]
[1722710636881,0.0382346,60398.0,60397.0,1.73348011]
[1722710636882,0.013274,60398.0,60397.0,1.73348011]
[1722710637068,0.012274,60398.0,60397.0,1.73348011]
[1722710637288,0.011274,60398.0,60397.0,1.73048011]
[1722710637509,0.013274,60398.0,60397.0,1.74248011]
[1722710637694,0.012274,60398.0,60397.0,1.73048011]
[1722710637919,0.012274,60398.0,60397.0,0.52442511]
[1722710638110,0.012274,60398.0,60397.0,0.68999611]
[1722710638309,0.012274,60398.0,60397.0,1.35228011]
[1722710638721,0.012274,60398.0,60397.0,1.34828011]
[1722710638722,0.011274,60398.0,60397.0,1.34828011]
[1722710639077,0.011274,60398.0,60397.0,1.35128011]
[1722710639283,0.011274,60398.0,60397.0,1.33481895]
[1722710639698,0.011274,60398.0,60397.0,1.01280961]
[1722710640283,0.011274,60398.0,60397.0,0.68166761]
[1722710640489,0.011274,60398.0,60397.0,1.01780961]
[1722710640692,0.011274,60398.0,60397.0,1.34895161]
[1722710640693,0.012274,60398.0,60397.0,1.34895161]
[1722710640913,0.011274,60398.0,60397.0,1.34395161]
[1722710641118,0.012274,60398.0,60397.0,1.34895161]
[1722710641319,0.012274,60398.0,60397.0,1.01780961]
[1722710641545,0.012274,60398.0,60397.0,0.68666761]
[1722710641954,0.012274,60398.0,60397.0,0.68670761]
[1722710642156,0.012274,60398.0,60397.0,0.18086195]
[1722710642379,0.011274,60398.0,60397.0,0.17286195]
[1722710642550,0.011274,60398.0,60397.0,0.01011106]
[1722710642762,0.011274,60398.0,60397.0,0.33836189]
[1722710642763,0.012274,60398.0,60397.0,0.33836189]
[1722710642996,0.011274,60398.0,60397.0,0.33436189]
[1722710643260,0.010274,60398.0,60397.0,0.33843295]
[1722710643383,0.025274,60398.0,60397.0,0.33843295]
[1722710643585,0.190842,60398.0,60397.0,0.17286195]
[1722710643785,0.025274,60398.0,60397.0,0.17286195]
[1722710644035,0.032274,60398.0,60397.0,0.33843295]
[1722710644236,0.018274,60398.0,60397.0,0.17286195]
[1722710644658,0.026274,60398.0,60397.0,0.33843295]
[1722710644865,0.026274,60398.0,60397.0,1.48187014]
[1722710645065,0.026274,60398.0,60397.0,1.63155895]
[1722710645269,0.026274,60398.0,60397.0,1.69955895]
[1722710645440,0.018274,60398.0,60397.0,1.69955895]
[1722710645639,0.018274,60398.0,60397.0,1.70955895]
[1722710645640,0.017274,60398.0,60397.0,1.70955895]
[1722710645840,0.017274,60398.0,60397.0,2.06070095]
[1722710646044,0.023274,60398.0,60397.0,1.69955895]
[1722710646276,0.016274,60398.0,60397.0,1.69955895]
[1722710646473,0.022274,60398.0,60397.0,1.70877237]
[1722710647209,0.022274,60398.0,60397.0,2.06991437]
[1722710647416,0.022274,60398.0,60397.0,2.07191437]
[1722710648572,0.016274,60398.0,60397.0,2.07191437]
[1722710648773,0.010274,60398.0,60397.0,2.07191437]
[1722710649005,0.012274,60398.0,60397.0,2.07191437]
[1722710649331,0.012274,60398.0,60397.0,2.04991437]
[1722710649583,0.010274,60398.0,60397.0,2.04991437]
[1722710649717,0.013274,60398.0,60397.0,2.06991437]
[1722710649915,0.011274,60398.0,60397.0,2.07191437]
[1722710650098,0.010274,60398.0,60397.0,2.04991437]
[1722710650300,0.001,60398.0,60397.0,2.05391437]
[1722710650727,0.002,60398.0,60397.0,2.07291437]
[1722710650899,0.002,60398.0,60397.0,2.07491437]
[1722710651411,0.002,60398.0,60397.0,2.73719837]
[1722710651623,0.1275,60424.0,60423.0,0.165499]
[1722710651829,0.1275,60424.0,60423.0,0.01646116]
[1722710652026,0.1275,60426.0,60423.0,0.02346922]
[1722710652163,0.292978,60431.0,60425.0,0.330984]
[1722710652368,0.1275,60431.0,60424.0,0.00700563]
[1722710652619,0.292978,60431.0,60427.0,0.165488]
[1722710652811,0.1275,60431.0,60430.0,0.496441]
[1722710653011,0.1275,60431.0,60430.0,0.51290216]
[1722710653213,0.1275,60431.0,60430.0,0.51989326]
[1722710653413,0.1275,60431.0,60430.0,0.68564415]
[1722710653660,0.1275,60431.0,60430.0,0.62238315]
[1722710653661,0.011,60431.0,60430.0,0.62238315]
[1722710653786,0.011,60431.0,60430.0,1.29630515]
[1722710653993,0.025,60431.0,60430.0,2.05822715]
[1722710654189,0.025,60431.0,60430.0,2.07822715]
[1722710654592,0.0099417,60431.0,60430.0,2.44238815]
[1722710654740,1e-08,60431.0,60430.0,2.10942715]
[1722710654940,1e-08,60431.0,60430.0,2.11442715]
[1722710655144,0.01026301,60444.0,60443.0,0.827225]
[1722710655351,0.01026301,60444.0,60443.0,1.00943705]
[1722710655553,0.01026301,60444.0,60443.0,1.34728667]
[1722710655781,0.01026301,60444.0,60443.0,1.71498667]
[1722710656326,0.01026301,60444.0,60443.0,1.72698667]
[1722710656544,0.01426301,60444.0,60443.0,1.71698667]
[1722710656760,0.01426301,60444.0,60443.0,1.71498667]
[1722710656972,0.01526301,60444.0,60443.0,1.76624462]
[1722710657183,0.01526301,60444.0,60443.0,1.59998667]
[1722710657594,0.01526301,60444.0,60443.0,1.60198667]
[1722710657802,0.01526301,60444.0,60443.0,1.59998667]
[1722710657931,0.01626301,60444.0,60443.0,1.60798667]
[1722710658155,0.01026301,60444.0,60443.0,1.59398667]
[1722710658637,0.01026301,60444.0,60443.0,1.61998667]
[1722710658869,0.01026301,60444.0,60443.0,1.27709667]
[1722710659095,0.01026301,60444.0,60443.0,1.11639667]
[1722710659329,0.01026301,60444.0,60443.0,1.46728667]
[1722710659791,0.01026301,60444.0,60443.0,1.45728667]
[1722710660006,0.01026301,60444.0,60443.0,1.12639667]
[1722710660376,0.01026301,60444.0,60443.0,1.47372923]
[1722710660644,0.01026301,60444.0,60443.0,1.45726807]
[1722710660865,0.01026301,60444.0,60443.0,1.72716807]
[1722710661101,0.01026301,60444.0,60443.0,1.71716807]
[1722710661294,0.01126301,60444.0,60443.0,1.45426807]
[1722710661406,0.01126301,60444.0,60443.0,1.44026807]
[1722710661611,0.01126301,60444.0,60443.0,1.45026807]
[1722710661856,0.01126301,60444.0,60443.0,0.68804551]
[1722710661857,0.01226301,60444.0,60443.0,0.68804551]
[1722710662058,0.01126301,60444.0,60443.0,1.01893551]
[1722710662275,0.01126301,60444.0,60443.0,1.33982551]
[1722710662507,0.01226301,60444.0,60443.0,1.45482551]
[1722710663669,0.03820262,60444.0,60443.0,1.45482551]
[1722710664091,0.01226301,60444.0,60443.0,1.45482551]
[1722710664461,0.01226301,60444.0,60443.0,1.45682551]
[1722710664869,0.01226301,60444.0,60443.0,1.45482551]
[1722710665492,0.01226301,60444.0,60443.0,0.69304551]
[1722710666177,0.01226301,60444.0,60443.0,1.02393551]
[1722710666365,0.01226301,60444.0,60443.0,0.69304551]
[1722710666978,0.01226301,60444.0,60443.0,1.02393551]
[1722710667525,0.01226301,60444.0,60443.0,1.35482551]
[1722710667731,0.01226301,60444.0,60443.0,1.45482551]
[1722710668324,0.01226301,60444.0,60443.0,1.45682551]
[1722710668847,0.01226301,60444.0,60443.0,1.97721551]
[1722710669252,0.01226301,60444.0,60443.0,1.78771551]
[1722710669685,0.01226301,60444.0,60443.0,1.79771551]
[1722710669907,0.01226301,60444.0,60443.0,1.78571551]
[1722710670115,0.01226301,60444.0,60443.0,1.46482551]
[1722710670319,0.01226301,60444.0,60443.0,1.45482551]
[1722710670847,0.01226301,60444.0,60443.0,1.78571551]
[1722710671047,0.01226301,60444.0,60443.0,1.78771551]
[1722710672661,0.01226301,60444.0,60443.0,1.45482551]
[1722710673115,0.01226301,60444.0,60443.0,1.78771551]
[1722710673266,0.01226301,60444.0,60443.0,1.45482551]
[1722710674855,0.01226301,60444.0,60443.0,1.79771551]
[1722710675077,0.01226301,60444.0,60443.0,1.78571551]
[1722710675689,0.01226301,60444.0,60443.0,2.43200551]
[1722710676670,0.01026301,60445.0,60444.0,1.520978]
[1722710676874,0.01026301,60445.0,60444.0,1.78672889]
[1722710677223,0.01026301,60445.0,60444.0,2.12457009]
[1722710677637,0.01026301,60445.0,60444.0,1.77168609]
[1722710677847,0.01026301,60445.0,60444.0,1.76168609]
[1722710678290,0.01126301,60445.0,60444.0,1.80468609]
[1722710678535,0.01126301,60445.0,60444.0,1.81968609]
[1722710678776,0.01226301,60445.0,60444.0,1.81968609]
[1722710679016,0.01226301,60445.0,60444.0,1.79768609]
[1722710679221,0.01226301,60445.0,60444.0,1.81968609]
[1722710679424,0.01226301,60445.0,60444.0,1.78768609]
[1722710679634,0.01226301,60445.0,60444.0,1.79968609]
[1722710679859,0.01226301,60445.0,60444.0,1.78768609]
[1722710680289,0.01226301,60445.0,60444.0,1.79968609]
[1722710680490,0.01226301,60445.0,60444.0,1.81968609]
[1722710681166,0.01226301,60445.0,60444.0,2.15057009]
[1722710681369,0.01226301,60445.0,60444.0,1.81968609]
[1722710681591,0.01226301,60445.0,60444.0,2.15057009]
[1722710682410,0.01226301,60445.0,60444.0,2.13057009]
[1722710682606,0.01226301,60445.0,60444.0,1.79768609]
[1722710682818,0.03820008,60445.0,60444.0,1.78768609]
[1722710683667,0.01226301,60445.0,60444.0,1.79768609]
[1722710684043,0.01226301,60445.0,60444.0,1.79968609]
[1722710684636,0.01226301,60445.0,60444.0,1.78768609]
[1722710684844,0.01226301,60445.0,60444.0,1.45680209]
[1722710686479,0.01226301,60445.0,60444.0,1.12591809]
[1722710686702,0.01226301,60445.0,60444.0,1.45680209]
[1722710687226,0.01226301,60445.0,60444.0,1.12591809]
[1722710687636,0.01226301,60445.0,60444.0,1.45680209]
[1722710688398,0.01126301,60445.0,60444.0,1.77468609]
[1722710688655,0.01126301,60445.0,60444.0,1.43080209]
[1722710688656,0.01026301,60445.0,60444.0,1.43080209]
[1722710688849,0.01026301,60445.0,60444.0,1.43580209]
[1722710689103,0.01026301,60445.0,60444.0,1.76868609]
[1722710689295,0.01026301,60445.0,60444.0,1.91608609]
[1722710689915,0.01126301,60445.0,60444.0,1.93208609]
[1722710690163,0.00100001,60445.0,60444.0,1.95208609]
[1722710690364,0.00100001,60445.0,60444.0,1.93008609]
[1722710690774,0.00100001,60445.0,60444.0,1.95008609]
[1722710691004,0.00100001,60445.0,60444.0,1.95208609]
[1722710691205,0.02693672,60445.0,60444.0,1.95208609]
[1722710691388,0.00100001,60445.0,60444.0,2.14158609]
[1722710691564,0.00100001,60445.0,60444.0,2.12158609]
[1722710691778,0.00100001,60445.0,60444.0,2.14158609]
[1722710692107,0.00100001,60445.0,60444.0,2.12158609]
[1722710692453,0.00100001,60445.0,60444.0,2.14158609]
[1722710692650,0.00100001,60445.0,60444.0,2.11158609]
[1722710693253,0.00100001,60445.0,60444.0,2.14158609]
[1722710693632,0.00100001,60445.0,60444.0,2.12158609]
[1722710694059,0.71118882,60453.0,60452.0,1.48878]
[1722710694293,0.71118882,60453.0,60452.0,1.77099205]
[1722710694510,0.71118882,60453.0,60452.0,1.77992989]
[1722710695048,0.71118882,60453.0,60452.0,1.77792989]
[1722710695461,0.71518882,60453.0,60452.0,1.77792989]
[1722710696082,0.71818882,60453.0,60452.0,1.77792989]
[1722710696873,0.71518882,60453.0,60452.0,1.77792989]
[1722710697102,0.71118882,60453.0,60452.0,1.77792989]
[1722710697303,0.71118882,60453.0,60452.0,1.78192989]
[1722710697509,0.71118882,60453.0,60452.0,1.85921639]
[1722710697885,0.73712371,60453.0,60452.0,1.85921639]
[1722710698256,0.73712371,60453.0,60452.0,1.45408989]
[1722710699569,0.86062371,60453.0,60452.0,1.43762873]
[1722710699974,0.86062371,60453.0,60452.0,0.01393784]
[1722710699975,1.15440582,60453.0,60452.0,0.01393784]
[1722710700206,1.62274022,60453.0,60452.0,0.01393784]
[1722710700411,1.95357522,60453.0,60452.0,0.007]
[1722710700626,2.23303099,60453.0,60452.0,0.007]
[1722710700805,0.2778,60446.0,60440.0,0.165452]
[1722710701009,0.13752084,60445.0,60439.0,0.330911]
[1722710701308,0.13752084,60445.0,60439.0,0.16575089]
[1722710701309,0.165453,60440.0,60439.0,0.16575089]
[1722710701508,0.1235,60443.0,60439.0,0.16575089]
[1722710701509,0.288945,60443.0,60439.0,0.33120589]
[1722710701660,0.165453,60440.0,60439.0,0.16575089]
[1722710701883,0.1543,60444.0,60437.0,0.01646116]
[1722710701884,0.981592,60438.0,60437.0,0.01646116]
[1722710702068,1.32554788,60438.0,60437.0,0.01646116]
[1722710702649,0.2778,60438.0,60437.0,0.01646116]
[1722710702860,0.2778,60438.0,60437.0,0.51284516]
[1722710703081,0.2778,60438.0,60437.0,0.01646116]
[1722710703285,1.13103612,60438.0,60437.0,0.01646116]
[1722710703485,1.46195312,60438.0,60437.0,0.01646116]
[1722710703700,1.48195312,60438.0,60437.0,0.01746116]
[1722710703963,0.81011912,60438.0,60437.0,0.01746116]
[1722710704163,0.31374412,60438.0,60437.0,0.67959605]
[1722710704373,0.15944412,60438.0,60437.0,1.01051905]
[1722710704589,0.04094412,60438.0,60437.0,1.34244205]
[1722710704773,0.04094412,60438.0,60437.0,1.01151905]
[1722710704979,0.04094412,60438.0,60437.0,1.34244205]
[1722710705199,0.04094412,60438.0,60437.0,1.77336505]
[1722710705583,0.015,60438.0,60437.0,1.84765155]
[1722710705789,0.005,60438.0,60437.0,1.77236505]
[1722710706103,0.005,60438.0,60437.0,2.58080274]
[1722710706265,0.01,60438.0,60437.0,2.43953633]
[1722710706491,0.01,60438.0,60437.0,2.18723841]
[1722710706829,0.71118882,60453.0,60452.0,0.49626]
[1722710706971,0.71118882,60453.0,60452.0,1.00931205]
[1722710707169,0.71118882,60453.0,60452.0,1.34015205]
[1722710707377,0.71118882,60453.0,60452.0,1.44015205]
[1722710707547,0.71118882,60453.0,60452.0,0.61305205]
[1722710707756,0.83898882,60453.0,60452.0,0.28221205]
[1722710707959,0.83898882,60453.0,60452.0,0.44736149]
[1722710708230,1.00440582,60453.0,60452.0,0.18194149]
[1722710708432,0.83898882,60453.0,60452.0,0.68320149]
[1722710708633,0.73712669,60453.0,60452.0,0.67820149]
[1722710708844,0.73712669,60453.0,60452.0,1.33988149]
[1722710709692,0.73712669,60453.0,60452.0,1.43988149]
[1722710710100,0.73712669,60453.0,60452.0,1.45381933]
[1722710710101,0.71218882,60453.0,60452.0,1.45381933]
[1722710710321,0.71218882,60453.0,60452.0,1.45281933]
[1722710710526,0.71218882,60453.0,60452.0,1.12197933]
[1722710710699,0.71218882,60453.0,60452.0,0.78513933]
[1722710710700,0.71118882,60453.0,60452.0,0.78513933]
[1722710710903,0.71118882,60453.0,60452.0,1.45181933]
[1722710711103,0.71118882,60453.0,60452.0,1.19775933]
[1722710711435,0.71118882,60453.0,60452.0,1.53759933]
[1722710711567,0.71118882,60453.0,60452.0,1.52859933]
[1722710711764,0.71118882,60453.0,60452.0,1.85943933]
[1722710711979,0.71218882,60453.0,60452.0,1.81369933]
[1722710712181,0.71218882,60453.0,60452.0,1.79723817]
[1722710712425,0.71218882,60453.0,60452.0,2.14939812]
[1722710712628,0.71118882,60453.0,60452.0,2.13939812]
[1722710712853,0.71218882,60453.0,60452.0,2.12807817]
[1722710713052,0.71218882,60453.0,60452.0,2.13007817]
[1722710713506,0.71218882,60453.0,60452.0,1.18629817]
[1722710713507,0.71118882,60453.0,60452.0,1.18629817]
[1722710713712,0.71218882,60453.0,60452.0,1.19629817]
[1722710713917,0.71218882,60453.0,60452.0,1.52213817]
[1722710714321,0.71218882,60453.0,60452.0,1.53013817]
[1722710714531,0.71218882,60453.0,60452.0,0.52961817]
[1722710714705,0.71618882,60453.0,60452.0,0.86045817]
[1722710714938,0.71618882,60453.0,60452.0,0.26419817]
[1722710715139,0.71218882,60453.0,60452.0,0.25419817]
[1722710715352,0.71118882,60453.0,60452.0,0.25919817]
[1722710715527,0.71418882,60453.0,60452.0,0.25919817]
[1722710715862,0.71418882,60453.0,60452.0,0.25419817]
[1722710716067,0.71118882,60453.0,60452.0,0.41961817]
[1722710716194,0.71318882,60453.0,60452.0,1.08129817]
[1722710716398,0.71318882,60453.0,60452.0,1.08114867]
[1722710716602,0.71318882,60453.0,60452.0,1.18114867]
[1722710717077,0.71318882,60453.0,60452.0,0.25404867]
[1722710717477,1.49104082,60453.0,60452.0,0.08871784]
[1722710717691,0.99778882,60453.0,60452.0,0.08871784]
[1722710717890,0.99778882,60453.0,60452.0,0.75072873]
[1722710718102,0.99278882,60453.0,60452.0,1.08156873]
[1722710718314,0.99578882,60453.0,60452.0,1.08156873]
[1722710718512,0.99578882,60453.0,60452.0,0.25746873]
[1722710718720,0.84198882,60453.0,60452.0,1.08456873]
[1722710718929,0.71718882,60453.0,60452.0,1.08156873]
[1722710719213,0.71718882,60453.0,60452.0,0.75072873]
[1722710719415,0.71718882,60453.0,60452.0,0.08871784]
[1722710719416,0.88460582,60453.0,60452.0,0.08871784]
[1722710719637,1.82357582,60453.0,60452.0,0.08871784]
[1722710719842,2.17741082,60453.0,60452.0,0.08871784]
[1722710720046,2.17741082,60453.0,60452.0,0.08178]
[1722710720250,1.82357582,60453.0,60452.0,0.08178]
[1722710720683,1.81757582,60453.0,60452.0,0.08178]
[1722710721108,1.82557582,60453.0,60452.0,0.08278]
[1722710721315,1.84151613,60453.0,60452.0,0.08178]
[1722710721528,0.1197,60452.0,60431.0,0.295388]
[1722710721735,0.165467,60435.0,60434.0,0.49750831]
[1722710721938,0.2773,60440.0,60431.0,0.01646116]
[1722710721939,0.165475,60432.0,60431.0,0.01646116]
[1722710722143,0.496425,60432.0,60431.0,0.01646116]
[1722710722346,1.114675,60432.0,60431.0,0.01646116]
[1722710722549,1.104675,60432.0,60431.0,0.01646116]
[1722710722753,1.435625,60432.0,60431.0,0.01746116]
[1722710722956,1.458625,60432.0,60431.0,0.01746116]
[1722710723166,1.105675,60432.0,60431.0,0.02446116]
[1722710723405,0.2783,60432.0,60431.0,0.02446116]
[1722710723602,0.2783,60432.0,60431.0,0.35568905]
[1722710724015,0.2783,60432.0,60431.0,1.01659905]
[1722710724221,0.2893,60432.0,60431.0,0.18321205]
[1722710724425,0.1307,60432.0,60431.0,0.18221205]
[1722710724691,0.1447,60432.0,60431.0,0.18221205]
[1722710724883,0.1447,60432.0,60431.0,0.18321205]
[1722710724884,0.321175,60432.0,60431.0,0.18321205]
[1722710725088,0.641125,60432.0,60431.0,0.01646116]
[1722710725332,0.1307,60432.0,60431.0,0.02344984]
[1722710725541,0.1307,60432.0,60431.0,0.02444984]
[1722710725542,0.314175,60432.0,60431.0,0.02444984]
[1722710725742,0.645125,60432.0,60431.0,0.02444984]
[1722710725949,0.645125,60432.0,60431.0,0.01746116]
[1722710726217,0.986075,60432.0,60431.0,0.01746116]
[1722710726436,1.307025,60432.0,60431.0,0.01746116]
[1722710727308,1.307025,60432.0,60431.0,0.001]
[1722710727508,0.645125,60432.0,60431.0,0.001]
[1722710728084,0.976075,60432.0,60431.0,0.001]
[1722710728289,0.1487,60432.0,60431.0,0.001]
[1722710728477,0.1487,60432.0,60431.0,0.16675089]
[1722710728664,0.1487,60432.0,60431.0,0.33921657]
[1722710729066,0.1487,60432.0,60431.0,0.17373957]
[1722710729067,0.17464789,60432.0,60431.0,0.17373957]
[1722710729272,0.17464789,60432.0,60431.0,0.33921657]
[1722710729500,0.1487,60432.0,60431.0,0.33921657]
[1722710729700,0.1487,60432.0,60431.0,0.17373957]
[1722710730101,0.1487,60432.0,60431.0,0.00798868]
[1722710730102,0.976075,60432.0,60431.0,0.00798868]
[1722710730303,1.317025,60432.0,60431.0,0.00798868]
[1722710730506,1.680975,60432.0,60431.0,0.001]
[1722710730704,0.165503,60422.0,60418.0,0.165512]
[1722710731050,0.165479,60431.0,60419.0,0.16732528]
[1722710731252,0.2947,60432.0,60419.0,0.16906074]
[1722710731407,0.460175,60432.0,60427.0,0.330973]
[1722710731607,0.2867,60432.0,60427.0,0.18221205]
[1722710731823,0.165484,60429.0,60427.0,0.18221205]
[1722710732033,0.165486,60428.0,60427.0,0.01646116]
[1722710732245,0.330957,60431.0,60427.0,0.01646116]
[1722710732451,0.2657,60432.0,60429.0,0.165482]
[1722710732662,0.2657,60432.0,60430.0,0.16575089]
[1722710732990,0.2916489,60432.0,60430.0,0.16575089]
[1722710733354,0.2916489,60432.0,60427.0,0.01646116]
[1722710733355,0.08291805,60431.0,60427.0,0.01646116]
[1722710733534,0.82743,60428.0,60427.0,0.01646116]
[1722710733733,0.82743,60428.0,60427.0,0.01746116]
[1722710734012,0.82743,60428.0,60427.0,0.01646116]
[1722710734425,2.20732489,60428.0,60427.0,0.01646116]
[1722710734879,2.21332489,60428.0,60427.0,0.01646116]
[1722710735048,0.165538,60409.0,60408.0,0.4737]
[1722710735256,0.165538,60409.0,60400.0,0.82862831]
[1722710735257,0.2623,60410.0,60401.0,0.165558]
[1722710735424,0.331091,60407.0,60402.0,0.16575089]
[1722710735750,0.331095,60406.0,60402.0,0.16575089]
[1722710735999,0.331091,60407.0,60397.0,0.165609]
[1722710736201,0.165568,60398.0,60397.0,0.16579089]
[1722710736401,0.613004,60398.0,60397.0,4e-05]
[1722710736619,0.281868,60398.0,60397.0,4e-05]
[1722710736819,0.1163,60398.0,60397.0,4e-05]
[1722710737029,0.613004,60398.0,60397.0,4e-05]
[1722710737231,0.613004,60398.0,60397.0,0.00711106]
[1722710737232,0.94414,60398.0,60397.0,0.00711106]
[1722710737416,0.94414,60398.0,60397.0,4e-05]
[1722710737625,1.454276,60398.0,60397.0,4e-05]
[1722710737823,1.785412,60398.0,60397.0,4e-05]
[1722710738065,1.799412,60398.0,60397.0,4e-05]
[1722710738344,1.813412,60398.0,60397.0,4e-05]
[1722710738546,1.799412,60398.0,60397.0,4e-05]
[1722710738854,1.799412,60398.0,60388.0,0.00083]
[1722710738855,1.782637,60389.0,60388.0,0.00083]
[1722710739182,1.090265,60389.0,60388.0,0.00083]
[1722710739357,1.421451,60389.0,60388.0,0.00083]
[1722710739588,1.11623377,60389.0,60388.0,0.00083]